bitfinex/quotes_ETHUSD_20250806
["timestamp","ask_amount","ask_price","bid_price","bid_amount"]
[1754494460861,3.0,3643.5,3642.9,0.1376]
[1754494461061,0.1376,3643.3,3642.8,0.1376]
[1754494461264,0.9457,3643.4,3642.7,2.74515622]
[1754494461465,0.9457,3643.3,3643.2,0.1376]
[1754494461741,4.257,3643.9,3643.0,2.74496366]
[1754494461742,0.4569,3643.6,3643.0,2.74496366]
[1754494461943,0.4888,3643.2,3643.1,2.74491504]
[1754494462142,0.9457,3643.2,3643.0,2.74493921]
[1754494462339,0.04,3643.9,3643.1,4.217]
[1754494462557,0.5288,3643.9,3643.7,2.74443501]
[1754494462794,0.04,3643.9,3643.8,2.74438772]
[1754494464059,0.5288,3643.9,3643.8,2.74438772]
[1754494464261,0.04,3643.9,3643.8,2.74438772]
[1754494464484,0.04,3643.9,3643.8,3.69538772]
[1754494464795,2.74228377,3646.6,3644.8,2.74363476]
[1754494464996,0.4888,3645.4,3644.8,2.74363476]
[1754494465197,1e-08,3644.9,3644.8,4.69250696]
[1754494465412,1e-08,3644.9,3644.8,5.24250696]
[1754494465997,0.4888,3646.4,3645.8,2.74288222]
[1754494466400,0.01955234,3646.7,3645.8,2.74288222]
[1754494466563,0.4888,3646.2,3645.8,2.74288222]
[1754494467961,0.01955234,3646.7,3645.7,2.7429319]
[1754494468167,0.9457,3645.8,3645.5,2.74308606]
[1754494468362,0.9457,3645.7,3645.3,4.225]
[1754494468618,0.9457,3645.6,3645.3,4.225]
[1754494468903,0.9457,3645.5,3645.3,4.225]
[1754494469096,0.9457,3645.4,3645.3,4.225]
[1754494469468,0.9457,3645.4,3644.6,2.74378318]
[1754494469666,3.0,3646.5,3644.7,6.96866386]
[1754494469667,0.9457,3645.3,3644.7,6.96866386]
[1754494470022,0.4569,3645.8,3644.8,6.96962691]
[1754494470232,0.4888,3645.6,3645.0,2.74343438]
[1754494470432,0.4888,3645.6,3645.1,6.97140895]
[1754494470596,2.74261171,3646.2,3645.2,4.227]
[1754494470782,0.9457,3645.5,3645.2,4.227]
[1754494470972,0.9457,3645.4,3645.2,4.227]
[1754494471318,0.9457,3645.4,3644.8,2.74362048]
[1754494471319,0.4888,3645.3,3645.0,2.74346202]
[1754494471616,0.4888,3645.3,3644.7,0.488]
[1754494471617,0.9457,3645.2,3644.7,2.74365681]
[1754494471771,2.74247439,3646.4,3644.7,2.74365681]
[1754494471772,0.9457,3645.1,3644.7,2.74365681]
[1754494471975,0.9457,3645.0,3644.8,6.96962729]
[1754494472388,0.4888,3645.0,3644.9,2.88035949]
[1754494472612,0.4888,3645.2,3644.9,0.1368]
[1754494472818,0.1368,3645.8,3644.9,2.88035172]
[1754494472990,0.4888,3645.7,3645.1,0.1368]
[1754494473323,0.4569,3645.6,3645.1,2.88020626]
[1754494473608,0.1368,3645.8,3644.8,4.226]
[1754494473787,0.1368,3645.8,3644.5,0.463]
[1754494473988,0.1368,3645.8,3645.7,2.74295745]
[1754494475537,0.04,3645.9,3645.8,7.92088222]
[1754494476015,0.04,3645.9,3645.8,8.05768222]
[1754494476315,0.04,3645.9,3645.8,9.13774619]
[1754494476487,0.04,3645.9,3645.8,8.67474619]
[1754494477486,0.04,3645.9,3645.8,7.10668222]
[1754494477880,0.04,3645.9,3645.8,4.3638]
[1754494478192,0.5288,3645.9,3645.8,4.3618]
[1754494478881,0.04,3645.9,3645.8,4.3618]
[1754494479211,0.04,3645.9,3645.8,7.10468222]
[1754494479415,0.04,3645.9,3645.8,9.04044721]
[1754494481806,0.041,3645.9,3645.8,9.04044721]
[1754494482209,0.04,3646.9,3646.6,2.74228048]
[1754494482411,0.04,3646.9,3646.8,2.74213008]
[1754494482608,0.04,3646.9,3646.8,4.3748]
[1754494482796,0.04,3646.9,3646.8,4.81228]
[1754494482997,0.04,3646.9,3646.8,4.3798]
[1754494483342,0.9857,3646.9,3646.8,4.3798]
[1754494484188,0.04,3646.9,3646.8,7.12193008]
[1754494484788,0.9857,3646.9,3646.8,0.1368]
[1754494484996,0.9857,3646.9,3645.8,1.12476499]
[1754494484997,0.9857,3646.9,3645.7,2.74293553]
[1754494485210,0.9857,3646.9,3645.5,4.243]
[1754494485211,3.9457,3646.8,3645.5,4.243]
[1754494485447,0.9457,3646.7,3645.7,2.74290321]
[1754494485598,2.74213114,3646.8,3645.7,2.74290321]
[1754494485800,0.9457,3646.6,3645.0,0.824331]
[1754494486045,2.74251059,3646.3,3645.2,2.74333369]
[1754494486248,2.74251059,3646.3,3645.1,4.252]
[1754494486249,2.74266936,3646.1,3645.1,2.74338088]
[1754494486433,0.9457,3646.0,3645.1,2.74338088]
[1754494486600,0.9457,3646.0,3644.4,0.463]
[1754494486800,3.0,3646.7,3644.4,2.74392831]
[1754494486801,2.74316264,3645.5,3644.4,2.74392831]
[1754494487001,0.9457,3645.4,3644.4,3.57882511]
[1754494487316,3.9457,3645.3,3644.1,0.04]
[1754494487636,2.74354272,3645.0,3644.1,0.04]
[1754494487797,4.254,3644.9,3644.1,0.04]
[1754494487997,3.0,3644.8,3644.1,0.04]
[1754494488231,3.9457,3644.8,3644.1,0.04]
[1754494488432,3.0,3644.8,3644.1,0.04]
[1754494488629,0.9457,3644.7,3644.1,0.04]
[1754494489215,5.74319139,3645.4,3645.3,2.74325844]
[1754494489216,3.0,3645.4,3645.3,2.74325844]
[1754494489409,0.4888,3646.1,3644.7,4.254]
[1754494489596,0.4888,3646.1,3644.8,0.45283634]
[1754494489797,0.4569,3646.0,3644.8,3.16901668]
[1754494489998,0.4888,3645.9,3645.0,2.74346572]
[1754494490299,0.4569,3645.8,3644.8,0.4254]
[1754494490514,0.4888,3645.9,3645.6,2.74298065]
[1754494490701,0.4569,3646.1,3645.5,2.74310659]
[1754494490929,0.4569,3646.1,3644.9,0.46824]
[1754494490930,0.4888,3645.8,3645.3,2.74322299]
[1754494491096,0.04,3646.9,3645.2,2.74331547]
[1754494491301,0.944,3646.8,3645.3,1.72439252]
[1754494491497,0.944,3646.8,3645.3,1.23205994]
[1754494491750,0.482,3646.8,3646.6,2.74220534]
[1754494491957,0.482,3646.8,3646.3,2.74245818]
[1754494492104,0.04,3646.9,3646.6,2.74222967]
[1754494492303,0.04,3646.9,3646.8,2.74213008]
[1754494492862,0.04,3646.9,3646.8,3.20703008]
[1754494493024,0.04,3646.9,3646.8,3.85097606]
[1754494493348,0.04,3646.9,3645.6,3.0]
[1754494493556,0.522,3646.9,3645.9,2.7428061]
[1754494493839,0.462,3646.8,3646.0,2.74268019]
[1754494494005,0.482,3646.7,3646.0,2.74268019]
[1754494494336,0.482,3646.7,3646.3,2.74247929]
[1754494494646,0.04,3646.9,3646.8,2.74213008]
[1754494495051,0.04,3646.9,3646.8,2.87893008]
[1754494496736,0.04,3646.9,3646.8,3.34383008]
[1754494497036,0.04,3646.9,3646.8,3.83403008]
[1754494497237,0.04,3646.9,3646.8,3.34383008]
[1754494497458,0.04,3646.9,3646.8,3.48753494]
[1754494497755,0.04,3646.9,3646.8,3.95243494]
[1754494498215,0.04,3646.9,3646.8,3.48753494]
[1754494498753,0.522,3646.9,3646.8,2.87893008]
[1754494498907,0.522,3646.9,3646.8,0.1368]
[1754494499721,0.984,3646.9,3646.8,0.1368]
[1754494500304,0.984,3646.9,3646.5,0.1368]
[1754494500526,0.984,3646.9,3645.7,0.4649]
[1754494500527,0.522,3646.9,3645.7,0.4649]
[1754494500835,0.944,3646.8,3645.4,10.01013347]
[1754494501003,0.944,3646.8,3646.4,0.1368]
[1754494501208,0.944,3646.7,3646.4,0.1368]
[1754494501400,0.1768,3646.9,3646.0,2.74268877]
[1754494501401,0.482,3646.6,3646.0,2.74268877]
[1754494501602,4.267,3646.5,3645.7,2.74288263]
[1754494501845,0.1368,3646.3,3645.8,0.1368]
[1754494502268,0.944,3646.2,3645.8,0.1368]
[1754494502567,0.944,3646.2,3644.2,0.4649]
[1754494502568,2.74274269,3646.0,3644.2,0.4649]
[1754494502706,3.0,3645.7,3644.7,2.74370867]
[1754494503005,2.8799206,3645.5,3643.9,3.23447816]
[1754494503202,0.1368,3645.3,3644.8,0.1368]
[1754494503437,4.731,3645.2,3644.8,0.1368]
[1754494503641,4.751,3645.1,3644.8,0.1368]
[1754494504007,0.944,3645.0,3644.8,0.1368]
[1754494504207,0.482,3645.0,3644.1,0.5049]
[1754494504439,4.272,3645.3,3644.9,2.74350779]
[1754494504640,4.272,3645.3,3644.9,2.88030779]
[1754494504942,4.272,3645.3,3645.2,2.74333369]
[1754494505240,4.756,3645.6,3645.2,3.42879172]
[1754494505444,0.944,3645.5,3645.1,0.1368]
[1754494505640,0.944,3645.5,3644.2,4.276]
[1754494505641,0.1368,3645.3,3644.2,2.74408649]
[1754494505841,0.482,3645.2,3644.9,0.1368]
[1754494506143,4.276,3645.1,3644.9,0.1368]
[1754494506346,0.944,3645.0,3644.8,0.1368]
[1754494506722,3.82436996,3644.9,3644.4,0.1368]
[1754494506924,3.0,3645.0,3644.2,0.1376]
[1754494506925,0.1368,3644.7,3644.2,0.1376]
[1754494507136,3.0,3645.0,3644.1,0.04]
[1754494507137,4.278,3644.6,3644.1,0.04]
[1754494507326,5.222,3644.6,3644.1,0.04]
[1754494507665,3.944,3644.5,3644.1,0.04]
[1754494508048,0.944,3644.4,3644.1,0.04]
[1754494508244,1.7,3644.3,3644.1,0.04]
[1754494508562,2.644,3644.3,3644.1,0.04]
[1754494508879,3.0,3644.5,3644.1,0.04]
[1754494508880,4.277,3644.5,3644.1,0.04]
[1754494509044,0.462,3644.2,3644.1,0.04]
[1754494509664,0.944,3644.2,3644.1,0.04]
[1754494510382,1.7,3644.4,3644.1,0.04]
[1754494510531,4.762,3644.2,3644.1,0.04]
[1754494510727,0.482,3644.7,3644.1,2.78416179]
[1754494511041,0.482,3644.7,3644.1,3.33716982]
[1754494511042,1.7,3644.6,3644.1,3.33716982]
[1754494511365,4.284,3644.5,3644.1,1.05794086]
[1754494511544,0.944,3645.0,3644.5,2.74380671]
[1754494511865,7.766,3644.9,3644.8,2.74363476]
[1754494512165,4.284,3644.9,3644.8,2.74357917]
[1754494512747,4.766,3644.9,3644.8,2.74357917]
[1754494513153,4.284,3644.9,3644.8,2.74357917]
[1754494513574,0.482,3645.3,3644.9,2.74354845]
[1754494513778,4.284,3645.2,3644.9,2.74354845]
[1754494514077,0.482,3645.1,3644.9,2.74354986]
[1754494514277,4.284,3645.2,3644.9,2.74354986]
[1754494514455,0.482,3645.1,3644.8,2.74360849]
[1754494514654,0.482,3645.0,3644.7,2.7436975]
[1754494514885,0.482,3645.0,3644.8,2.74362393]
[1754494515064,0.482,3645.0,3644.2,2.7440586]
[1754494515265,0.482,3645.0,3644.2,3.4479143]
[1754494515470,0.482,3645.0,3644.9,2.74355949]
[1754494515774,4.284,3645.2,3644.9,2.74355949]
[1754494515943,4.284,3645.2,3644.8,2.74358098]
[1754494516148,4.284,3645.2,3644.4,0.4649]
[1754494516344,4.282,3645.1,3644.5,2.74386061]
[1754494516551,4.282,3645.1,3645.0,2.74344829]
[1754494516884,3.0,3645.7,3645.3,2.74319301]
[1754494517187,0.462,3646.6,3645.4,0.4649]
[1754494517485,4.28,3646.5,3646.3,2.7425061]
[1754494517784,4.28,3646.5,3646.4,2.74243089]
[1754494518779,4.28,3646.5,3646.4,2.87923089]
[1754494518944,4.28,3646.8,3646.6,2.74227546]
[1754494519148,4.28,3646.8,3646.4,0.6017]
[1754494519149,0.482,3646.7,3646.4,0.1368]
[1754494519345,0.482,3646.6,3646.4,0.1368]
[1754494519975,4.279,3646.6,3646.4,0.1368]
[1754494520146,4.279,3646.6,3646.5,2.74235568]
[1754494521872,4.279,3646.6,3646.5,3.19485568]
[1754494522048,4.279,3646.6,3646.5,3.80226891]
[1754494522254,4.279,3646.6,3646.5,4.26246891]
[1754494522571,0.041,3646.9,3646.8,2.74213008]
[1754494522772,0.041,3646.9,3646.8,2.87893008]
[1754494522979,0.041,3646.9,3646.8,3.33143008]
[1754494523181,0.041,3646.9,3646.8,2.87893008]
[1754494523487,0.041,3646.9,3646.8,3.95428587]
[1754494523663,0.041,3646.9,3646.8,4.41448587]
[1754494523848,0.041,3646.9,3646.8,3.50178587]
[1754494524049,0.041,3646.9,3646.8,0.1368]
[1754494525100,0.041,3646.9,3646.8,2.87893008]
[1754494525392,0.041,3646.9,3646.8,0.1368]
[1754494525886,0.5062,3646.9,3646.8,0.1368]
[1754494526087,0.5062,3646.9,3646.3,4.278]
[1754494526265,0.5062,3646.9,3646.7,0.1368]
[1754494526850,0.041,3646.9,3646.7,0.1368]
[1754494527386,0.041,3646.9,3646.8,3.33143008]
[1754494527761,0.041,3646.9,3646.8,3.79163008]
[1754494528163,0.041,3646.9,3646.8,3.33143008]
[1754494528366,0.041,3646.9,3646.8,3.48629453]
[1754494528891,0.041,3646.9,3646.8,2.87893008]
[1754494529188,0.041,3646.9,3646.8,0.1368]
[1754494529751,0.5062,3646.9,3646.8,0.1368]
[1754494529948,0.9454,3646.9,3646.6,0.1368]
[1754494530155,0.041,3646.9,3646.8,2.74213008]
[1754494530358,0.041,3646.9,3646.8,3.97429309]
[1754494531185,0.041,3646.9,3646.8,4.00171439]
[1754494531508,0.041,3646.9,3646.8,3.97429309]
[1754494532318,0.04,3647.9,3647.8,2.74137836]
[1754494533383,0.04,3647.9,3647.8,3.74216796]
[1754494533774,0.04,3647.9,3647.8,3.28966796]
[1754494534917,0.04,3647.9,3647.8,3.74216796]
[1754494535067,0.04,3647.9,3647.8,4.20236796]
[1754494535919,0.04,3647.9,3647.8,4.22978174]
[1754494536265,0.04,3647.9,3647.8,4.20236796]
[1754494537294,0.04,3647.9,3647.8,8.04458174]
[1754494537463,0.04,3647.9,3647.8,8.01716796]
[1754494538126,0.04,3647.9,3647.8,8.47736796]
[1754494538312,0.04,3647.9,3647.8,3.74216796]
[1754494538490,0.04,3647.9,3647.8,8.47636796]
[1754494538687,0.04,3647.9,3647.8,3.28966796]
[1754494538929,0.04,3647.9,3647.8,8.04458174]
[1754494539092,0.04,3647.9,3647.8,8.47736796]
[1754494539791,0.04,3647.9,3647.8,3.28966796]
[1754494540125,0.04,3647.9,3647.8,7.01837836]
[1754494540423,0.5052,3647.9,3647.8,4.4138]
[1754494540623,0.5052,3647.9,3647.8,7.15517836]
[1754494541330,0.04,3647.9,3647.8,7.15517836]
[1754494541507,0.04,3647.9,3647.8,2.87817836]
[1754494541701,0.04,3647.9,3647.8,7.15517836]
[1754494542017,0.04,3647.9,3647.8,8.14484891]
[1754494542533,0.04,3647.9,3647.8,8.92074891]
[1754494542733,0.04,3647.9,3647.8,9.05754891]
[1754494542887,0.04,3647.9,3647.8,4.78054891]
[1754494543090,0.04,3647.9,3647.8,8.59834891]
[1754494543522,0.04,3647.9,3647.8,9.05854891]
[1754494544637,0.04,3647.9,3647.8,8.59834891]
[1754494544795,0.04,3647.9,3647.8,3.86784891]
[1754494544994,0.04,3647.9,3647.8,8.14484891]
[1754494545238,0.04,3647.9,3647.8,8.59734891]
[1754494545621,0.04,3647.9,3647.8,9.05754891]
[1754494546138,0.04,3647.9,3647.8,8.59734891]
[1754494546435,0.04,3647.9,3647.8,9.05754891]
[1754494546644,0.04,3647.9,3647.8,8.14484891]
[1754494547142,0.04,3647.9,3647.8,8.59534891]
[1754494547324,0.04,3647.9,3647.8,0.1368]
[1754494547509,0.04,3647.9,3647.7,7.01642103]
[1754494547510,0.9444,3647.9,3647.7,7.01642103]
[1754494547835,0.4652,3647.8,3647.7,2.74145351]
[1754494548133,0.9044,3647.8,3647.4,2.74161806]
[1754494548332,0.9044,3647.8,3646.9,0.504]
[1754494548333,0.9044,3647.7,3647.1,4.275]
[1754494548532,0.4652,3647.6,3647.5,2.74158776]
[1754494548732,0.9044,3647.6,3646.7,2.74220073]
[1754494548987,0.4652,3647.5,3646.8,4.275]
[1754494549237,0.4652,3647.5,3647.3,2.74170914]
[1754494549534,0.4392,3647.4,3647.3,2.74170915]
[1754494549719,0.9044,3647.4,3647.3,2.74170915]
[1754494549921,0.9044,3647.4,3647.3,2.74175417]
[1754494550325,0.041,3647.9,3647.4,2.74162613]
[1754494550734,0.041,3647.9,3647.1,2.74189037]
[1754494550916,0.9082,3647.8,3647.2,2.74175977]
[1754494551242,0.9082,3647.7,3647.2,2.74180776]
[1754494551443,0.041,3647.9,3647.2,2.74180776]
[1754494551660,0.9082,3647.6,3646.1,0.002]
[1754494551808,3.0,3647.4,3646.1,0.002]
[1754494552144,3.0,3647.0,3646.1,0.002]
[1754494552312,3.0,3647.1,3646.1,2.74463978]
[1754494552510,0.4597,3647.0,3646.1,2.74465437]
[1754494552742,3.0,3646.8,3646.1,0.002]
[1754494552940,2.74210613,3646.9,3646.1,0.002]
[1754494553238,3.65044084,3646.7,3646.1,0.002]
[1754494553455,7.276,3646.6,3646.1,0.002]
[1754494553652,3.0,3646.2,3646.1,0.002]
[1754494553864,7.276,3646.2,3646.1,0.002]
[1754494554161,8.1842,3646.2,3646.1,0.002]
[1754494554564,10.92678131,3646.2,3646.1,0.002]
[1754494554934,8.1842,3646.2,3646.1,0.002]
[1754494555145,10.92678131,3646.2,3646.1,0.002]
[1754494555386,11.47678131,3646.2,3646.1,0.002]
[1754494555932,41.47678131,3646.2,3646.1,0.002]
[1754494556127,0.55,3645.9,3645.8,0.002]
[1754494556382,40.56880698,3645.9,3645.8,0.002]
[1754494556669,41.47700698,3645.9,3645.8,0.002]
[1754494557423,34.595,3645.9,3645.8,0.002]
[1754494557630,4.045,3645.9,3645.8,0.002]
[1754494558291,7.8715,3645.9,3645.8,0.002]
[1754494558484,8.32,3645.9,3645.8,0.002]
[1754494558771,4.045,3645.9,3645.8,0.002]
[1754494558968,3.5965,3645.9,3645.8,0.002]
[1754494559158,6.588,3646.6,3645.8,0.002]
[1754494559159,0.4597,3646.3,3645.9,2.7427588]
[1754494559360,0.4597,3646.2,3646.0,2.74272286]
[1754494559558,0.4597,3646.5,3645.8,0.002]
[1754494559763,4.275,3646.4,3646.0,0.1368]
[1754494559929,3.9082,3646.3,3645.8,0.002]
[1754494560433,0.1368,3646.0,3645.8,2.74486622]
[1754494560660,0.1368,3646.0,3645.8,0.002]
[1754494560859,0.4597,3646.3,3645.9,2.87956221]
[1754494561171,0.4597,3646.2,3645.9,0.1368]
[1754494561357,0.4597,3646.2,3646.0,2.74266154]
[1754494561542,3.0,3646.4,3646.0,0.28814615]
[1754494561746,0.9082,3646.3,3646.1,0.1368]
[1754494561959,1.045,3646.3,3645.8,2.88166794]
[1754494562266,1.045,3646.3,3645.8,0.1388]
[1754494562267,0.4597,3646.2,3645.8,0.1388]
[1754494562646,0.4597,3646.1,3645.8,0.1388]
[1754494562854,0.4597,3646.1,3645.8,0.002]
[1754494562855,0.9082,3646.1,3645.8,0.002]
[1754494563037,0.5853,3646.0,3645.8,0.002]
[1754494563233,0.5965,3646.0,3645.8,0.002]
[1754494563439,0.9082,3645.9,3645.8,0.002]
[1754494564578,4.281,3646.0,3645.8,0.002]
[1754494564781,0.4597,3645.9,3645.8,0.002]
[1754494565168,3.4597,3645.9,3645.8,0.002]
[1754494565341,4.045,3645.9,3645.8,0.002]
[1754494565886,3.1368,3645.9,3645.8,0.002]
[1754494566103,4.284,3645.9,3645.8,0.002]
[1754494566384,4.284,3645.9,3645.8,2.74488222]
[1754494566385,7.284,3645.9,3645.8,2.74488222]
[1754494566595,4.284,3645.9,3645.8,2.74488222]
[1754494566743,4.284,3645.9,3645.8,0.002]
[1754494566938,4.284,3645.9,3645.8,2.74488222]
[1754494567571,0.4485,3646.5,3645.8,1.6515714]
[1754494567572,4.284,3646.5,3645.8,1.6515714]
[1754494567871,4.284,3646.5,3646.3,0.1368]
[1754494568056,0.9082,3646.4,3645.8,0.002]
[1754494568256,0.9082,3646.4,3645.9,0.1368]
[1754494568456,0.4597,3646.3,3646.0,2.74272993]
[1754494568668,0.4597,3646.2,3645.9,2.87959187]
[1754494568876,0.4597,3646.2,3645.9,0.1368]
[1754494569370,0.4597,3646.2,3645.9,2.87960603]
[1754494569577,0.4597,3646.2,3646.0,2.74272972]
[1754494569738,4.4248,3646.6,3646.2,2.74252633]
[1754494570039,4.4248,3646.6,3646.4,2.742429]
[1754494570238,4.4248,3646.6,3646.3,2.74247636]
[1754494570438,0.001,3646.9,3646.7,2.74220528]
[1754494570661,0.001,3646.9,3646.7,2.87897869]
[1754494571240,0.001,3646.9,3646.8,2.74213008]
[1754494571856,0.001,3646.9,3646.7,2.87899132]
[1754494572059,0.001,3646.9,3646.8,2.74213008]
[1754494572654,0.001,3646.9,3646.7,2.878985]
[1754494572838,0.9092,3646.9,3646.3,2.74247254]
[1754494573042,0.5965,3646.8,3646.3,2.74247254]
[1754494573278,0.1368,3646.8,3646.4,2.7423786]
[1754494573486,0.4597,3646.7,3646.3,2.74248184]
[1754494573843,0.4597,3646.6,3646.2,0.1368]
[1754494574271,0.4597,3646.5,3646.2,0.1368]
[1754494574475,0.4597,3646.5,3646.0,2.74271991]
[1754494574779,1.045,3646.4,3645.9,0.1388]
[1754494575076,0.1368,3646.4,3646.0,0.4706]
[1754494575307,0.1368,3646.8,3646.4,2.74241918]
[1754494575451,3.0,3646.7,3646.4,2.87921918]
[1754494575644,3.0,3646.7,3646.4,0.6074]
[1754494575858,3.4597,3646.7,3646.4,0.1368]
[1754494576066,3.0,3646.7,3646.4,0.1368]
[1754494576278,3.0,3646.8,3646.4,3.34981493]
[1754494576456,3.0,3646.8,3646.5,2.74234939]
[1754494576653,4.286,3646.9,3646.5,0.4706]
[1754494576870,4.286,3646.9,3646.7,0.1368]
[1754494577248,4.7457,3646.9,3646.7,0.1368]
[1754494577548,0.4597,3646.8,3646.7,0.1368]
[1754494577986,4.286,3646.9,3646.7,0.1368]
[1754494578186,4.286,3646.9,3646.7,2.87898432]
[1754494578686,0.4597,3646.8,3646.7,0.1368]
[1754494578890,4.286,3646.9,3646.7,0.1368]
[1754494579244,4.7457,3646.9,3646.7,0.1368]
[1754494579494,4.286,3646.9,3646.8,2.74213008]
[1754494580047,4.286,3646.9,3646.7,2.87896905]
[1754494580247,4.286,3646.9,3646.8,2.74213008]
[1754494580447,0.001,3646.9,3646.8,3.54768309]
[1754494580750,0.001,3646.9,3646.8,4.02738309]
[1754494582401,0.001,3646.9,3646.8,3.07708309]
[1754494582606,0.001,3646.9,3646.8,2.74213008]
[1754494583048,0.001,3646.9,3646.8,3.18653008]
[1754494583244,0.001,3646.9,3646.8,3.80485138]
[1754494583481,0.001,3646.9,3646.8,3.77743008]
[1754494583689,0.001,3646.9,3646.8,4.86004334]
[1754494584771,0.001,3646.9,3646.8,8.23954334]
[1754494584949,0.4703,3646.9,3646.8,0.1368]
[1754494585566,0.4703,3646.9,3646.2,3.18695162]
[1754494585567,0.4703,3646.9,3646.2,0.4444]
[1754494585766,0.9379,3646.9,3646.5,2.74235512]
[1754494585967,0.4676,3646.8,3646.6,0.1368]
[1754494586171,0.9369,3646.8,3646.6,0.1368]
[1754494586373,0.4693,3646.7,3646.6,0.1368]
[1754494586571,0.001,3646.9,3646.6,0.1368]
[1754494586773,0.4693,3646.8,3646.6,0.1368]
[1754494587105,0.4676,3646.7,3646.4,2.87918012]
[1754494587313,0.001,3646.9,3646.4,0.1368]
[1754494587454,0.001,3646.9,3646.7,0.1368]
[1754494587860,0.4703,3646.9,3646.8,2.74213008]
[1754494588055,0.001,3646.9,3646.8,2.74213008]
[1754494588789,0.4703,3646.9,3646.7,0.1368]
[1754494589096,0.4703,3646.9,3646.3,2.7424357]
[1754494589097,0.6044,3646.8,3646.3,0.1368]
[1754494589269,0.1368,3646.8,3646.3,0.1368]
[1754494589472,0.9369,3646.7,3646.4,2.74243053]
[1754494589797,0.001,3646.9,3646.8,2.74213008]
[1754494590098,0.001,3646.9,3646.8,2.87893008]
[1754494591483,0.001,3646.9,3646.8,3.77743008]
[1754494591986,0.001,3646.9,3646.8,3.32333008]
[1754494592186,0.001,3646.9,3646.8,4.40379429]
[1754494592387,0.001,3646.9,3646.8,4.85789429]
[1754494592769,0.001,3646.9,3646.8,4.40379429]
[1754494593169,0.001,3646.9,3646.8,4.88531559]
[1754494593422,0.001,3646.9,3646.8,4.40379429]
[1754494593564,0.001,3646.9,3646.8,8.68779429]
[1754494594198,0.001,3646.9,3646.8,8.68679429]
[1754494594597,0.001,3646.9,3646.8,9.14089429]
[1754494594799,0.001,3646.9,3646.4,0.28792305]
[1754494594800,0.4703,3646.9,3646.4,0.28792305]
[1754494595000,0.4676,3646.8,3646.1,4.283]
[1754494595185,0.4693,3646.7,3646.6,2.74228048]
[1754494596082,0.4693,3646.7,3646.5,2.74232529]
[1754494596302,0.4676,3646.6,3646.3,2.74249134]
[1754494596610,0.9369,3646.5,3646.3,2.74249134]
[1754494596811,0.4676,3646.5,3646.3,2.74249134]
[1754494596974,0.4693,3646.4,3646.3,2.74249134]
[1754494597306,0.001,3646.9,3646.2,4.282]
[1754494597518,0.001,3646.9,3646.5,2.74232124]
[1754494597814,0.001,3646.9,3646.6,2.74227705]
[1754494598309,0.4693,3646.8,3646.7,2.74213896]
[1754494598509,0.9369,3646.8,3646.5,2.74235568]
[1754494598717,0.9369,3646.7,3646.4,2.74240057]
[1754494598876,0.001,3646.9,3646.1,0.002]
[1754494598877,0.9369,3646.6,3646.1,2.74460199]
[1754494599073,0.9369,3646.5,3646.1,0.002]
[1754494599415,0.9369,3646.4,3646.1,0.002]
[1754494599609,0.9369,3646.3,3646.1,0.002]
[1754494600110,0.9369,3646.2,3646.1,0.002]
[1754494602283,3.9369,3646.2,3646.1,0.002]
[1754494602616,0.9369,3646.2,3646.1,0.002]
[1754494602828,3.67948131,3646.2,3646.1,0.002]
[1754494603034,4.22948131,3646.2,3646.1,0.002]
[1754494604031,37.22948131,3646.2,3646.1,0.002]
[1754494604900,3.4693,3646.2,3646.1,0.002]
[1754494605102,7.4148,3646.2,3646.1,0.002]
[1754494605322,7.8841,3646.2,3646.1,0.002]
[1754494605849,11.64428131,3646.2,3646.1,0.002]
[1754494606017,41.64428131,3646.2,3646.1,0.002]
[1754494608150,0.55,3645.8,3645.4,0.002]
[1754494608446,3.29333369,3645.2,3645.1,1e-08]
[1754494608648,47.58896026,3645.2,3645.1,1e-08]
[1754494608944,48.66266026,3645.2,3645.1,1e-08]
[1754494609450,48.23803369,3645.2,3645.1,1e-08]
[1754494609627,48.23703369,3645.2,3645.1,1e-08]
[1754494609930,6.29340895,3645.1,3645.0,1e-08]
[1754494610137,37.23030895,3645.1,3645.0,1e-08]
[1754494611120,41.50830895,3645.1,3645.0,1e-08]
[1754494611431,41.50290895,3645.1,3645.0,1e-08]
[1754494611800,41.03350895,3645.1,3645.0,1e-08]
[1754494612015,34.0121,3645.1,3645.0,1e-08]
[1754494612211,33.55,3645.1,3645.0,1e-08]
[1754494612411,18.52906633,3645.1,3645.0,1e-08]
[1754494612613,0.041,3646.9,3646.2,2.74252004]
[1754494612846,0.041,3646.9,3646.0,0.4448]
[1754494613048,4.328,3646.8,3646.5,2.7422983]
[1754494613240,4.328,3646.8,3646.1,0.4822]
[1754494613479,0.041,3646.9,3646.5,0.4448]
[1754494613645,0.041,3646.9,3646.7,2.74216918]
[1754494613849,0.041,3646.9,3646.6,0.927]
[1754494614061,0.041,3646.9,3646.0,2.74268708]
[1754494614241,28.809118,3646.8,3645.7,2.74295745]
[1754494614449,3.0,3646.6,3645.8,2.74281343]
[1754494614762,3.0,3646.6,3645.8,2.74286274]
[1754494615080,3.0,3646.4,3645.8,2.74286274]
[1754494615463,3.0,3646.4,3645.9,2.74277198]
[1754494615800,3.0,3646.4,3645.7,2.74295255]
[1754494615944,3.4621,3646.4,3645.8,2.74286162]